[Event "TePe Sigeman Chess Tournament 2026"]
[Site "Elite Plaza Hotel, Gustav Adolfs Torg 49, Malmo, Sweden"]
[Date "2026.05.02"]
[Round "2.1"]
[White "Erdogmus, Yagiz Kaan"]
[Black "Erigaisi, Arjun"]
[Result "1/2-1/2"]
[TimeControl "90 minutes for 40 moves + 30 minutes for the rest of the game + 30 seconds per move from move one."]
[WhiteTitle "GM"]
[BlackTitle "GM"]
[WhiteFideId "44599790"]
[BlackFideId "35009192"]
[WhiteElo "2708"]
[BlackElo "2751"]

1. e4 {[%clk 01:30:59]} e5 {[%clk 01:30:03]} {[%emt 00:00:57]} 2. Nf3 {[%clk
01:31:24]} {[%emt 00:00:05]} Nc6 {[%clk 01:30:27]} {[%emt 00:00:06]} 3. Bb5
{[%clk 01:31:39]} {[%emt 00:00:16]} a6 {[%clk 01:30:50]} {[%emt 00:00:07]} 4.
Ba4 {[%clk 01:32:05]} {[%emt 00:00:04]} Nf6 {[%clk 01:31:13]} {[%emt 00:00:07]}
5. O-O {[%clk 01:32:23]} {[%emt 00:00:12]} Be7 {[%clk 01:31:28]} {[%emt
00:00:15]} 6. d3 {[%clk 01:30:35]} {[%emt 00:02:18]} b5 {[%clk 01:31:10]}
{[%emt 00:00:48]} 7. Bb3 {[%clk 01:31:04]} {[%emt 00:00:01]} d6 {[%clk
01:31:33]} {[%emt 00:00:07]} 8. c3 {[%clk 01:28:19]} {[%emt 00:03:15]} O-O
{[%clk 01:31:54]} {[%emt 00:00:09]} 9. Nbd2 {[%clk 01:26:56]} {[%emt 00:01:53]}
Na5 {[%clk 01:26:06]} {[%emt 00:06:18]} 10. Bc2 {[%clk 01:27:22]} {[%emt
00:00:04]} c5 {[%clk 01:26:30]} {[%emt 00:00:06]} 11. d4 {[%clk 01:20:44]}
{[%emt 00:07:07]} cxd4 {[%clk 01:24:40]} {[%emt 00:02:21]} 12. cxd4 {[%clk
01:21:07]} {[%emt 00:00:08]} Qc7 {[%clk 01:20:18]} {[%emt 00:04:52]} 13. d5
{[%clk 01:16:06]} {[%emt 00:05:31]} Bg4 {[%clk 01:11:29]} {[%emt 00:09:19]} 14.
h3 {[%clk 00:59:23]} {[%emt 00:17:13]} Bh5 {[%clk 01:11:41]} {[%emt 00:00:18]}
15. Re1 {[%clk 00:58:38]} {[%emt 00:01:14]} Rfc8 {[%clk 00:53:14]} {[%emt
00:18:58]} 16. Bb1 {[%clk 00:52:30]} {[%emt 00:06:39]} Bd8 {[%clk 00:52:57]}
{[%emt 00:00:47]} 17. g4 {[%clk 00:43:08]} {[%emt 00:09:52]} Bg6 {[%clk
00:53:13]} {[%emt 00:00:13]} 18. Nf1 {[%clk 00:43:28]} {[%emt 00:00:10]} Nb7
{[%clk 00:46:09]} {[%emt 00:07:33]} 19. Ng3 {[%clk 00:43:25]} {[%emt 00:00:33]}
Nc5 {[%clk 00:45:11]} {[%emt 00:01:28]} 20. Kg2 {[%clk 00:26:28]} {[%emt
00:17:28]} Rab8 {[%clk 00:35:36]} {[%emt 00:10:04]} 21. Qe2 {[%clk 00:14:15]}
{[%emt 00:12:43]} Qa5 {[%clk 00:29:59]} {[%emt 00:06:07]} 22. Nd2 {[%clk
00:09:00]} {[%emt 00:05:46]} Nfd7 {[%clk 00:28:32]} {[%emt 00:01:57]} 23. Rh1
{[%clk 00:07:27]} {[%emt 00:02:02]} Bh4 {[%clk 00:27:47]} {[%emt 00:01:15]} 24.
Qe3 {[%clk 00:04:23]} {[%emt 00:03:35]} h6 {[%clk 00:19:40]} {[%emt 00:08:36]}
25. Nf3 {[%clk 00:03:56]} {[%emt 00:00:57]} Bxg3 {[%clk 00:20:04]} {[%emt
00:00:06]} 26. Kxg3 {[%clk 00:04:10]} {[%emt 00:00:16]} Nf6 {[%clk 00:18:41]}
{[%emt 00:01:53]} 27. Nd2 {[%clk 00:04:35]} {[%emt 00:00:05]} Rb7 {[%clk
00:18:52]} {[%emt 00:00:19]} 28. f3 {[%clk 00:04:07]} {[%emt 00:00:58]} Rbc7
{[%clk 00:17:33]} {[%emt 00:01:50]} 29. Rd1 {[%clk 00:02:52]} {[%emt 00:01:45]}
Nfd7 {[%clk 00:16:16]} {[%emt 00:01:47]} 30. b3 {[%clk 00:01:53]} {[%emt
00:01:29]} Qb6 {[%clk 00:14:25]} {[%emt 00:02:20]} 31. Kf2 {[%clk 00:01:17]}
{[%emt 00:01:06]} a5 {[%clk 00:06:47]} {[%emt 00:08:08]} 32. Bb2 {[%clk
00:01:18]} {[%emt 00:00:29]} Qa7 {[%clk 00:07:16]} {[%emt 00:00:02]} 33. Rc1
{[%clk 00:01:03]} {[%emt 00:00:45]} f6 {[%clk 00:04:45]} {[%emt 00:03:00]} 34.
a3 {[%clk 00:00:58]} {[%emt 00:00:36]} Ra8 {[%clk 00:04:03]} {[%emt 00:01:12]}
35. Bc2 {[%clk 00:01:07]} {[%emt 00:00:21]} Bf7 {[%clk 00:04:06]} {[%emt
00:00:27]} 36. b4 {[%clk 00:00:54]} {[%emt 00:00:43]} axb4 {[%clk 00:03:36]}
{[%emt 00:01:00]} 37. axb4 {[%clk 00:01:21]} {[%emt 00:00:04]} Na6 {[%clk
00:04:03]} {[%emt 00:00:03]} 38. Bd3 {[%clk 00:00:44]} {[%emt 00:01:07]} Qb8
{[%clk 00:03:54]} {[%emt 00:00:39]} 39. Rxc7 {[%clk 00:00:36]} {[%emt
00:00:38]} Nxc7 {[%clk 00:04:22]} {[%emt 00:00:02]} 40. Nb3 {[%clk 00:00:33]}
{[%emt 00:00:33]} Ra4 {[%clk 00:03:33]} {[%emt 00:01:19]} 41. Qe1 {[%clk
00:12:12]} {[%emt 00:18:51]} Nf8 {[%clk 00:26:38]} {[%emt 00:07:24]} 42. Na5
{[%clk 00:08:39]} {[%emt 00:04:03]} Be8 {[%clk 00:26:16]} {[%emt 00:00:52]} 43.
Bc2 {[%clk 00:04:44]} {[%emt 00:04:26]} Rxa1 {[%clk 00:20:35]} {[%emt
00:06:11]} 44. Bxa1 {[%clk 00:05:12]} {[%emt 00:00:01]} Ng6 {[%clk 00:20:53]}
{[%emt 00:00:11]} 45. Bc3 {[%clk 00:01:32]} {[%emt 00:04:11]} Nf4 {[%clk
00:21:15]} {[%emt 00:00:08]} 46. h4 {[%clk 00:01:21]} {[%emt 00:00:42]} Qc8
{[%clk 00:15:01]} {[%emt 00:06:44]} 47. Bd2 {[%clk 00:01:00]} {[%emt 00:00:51]}
h5 {[%clk 00:08:57]} {[%emt 00:06:33]} 48. Bxf4 {[%clk 00:00:51]} {[%emt
00:00:40]} exf4 {[%clk 00:09:25]} {[%emt 00:00:02]} 49. Nc6 {[%clk 00:00:51]}
{[%emt 00:00:30]} Bxc6 {[%clk 00:06:35]} {[%emt 00:03:20]} 50. dxc6 {[%clk
00:01:20]} hxg4 {[%clk 00:06:31]} {[%emt 00:00:33]} 51. Qd2 {[%clk 00:01:17]}
{[%emt 00:00:33]} Qe6 {[%clk 00:06:02]} {[%emt 00:00:59]} 52. Qxf4 {[%clk
00:00:42]} {[%emt 00:01:06]} Qc4 {[%clk 00:06:30]} {[%emt 00:00:02]} 53. Qd2
{[%clk 00:00:33]} {[%emt 00:00:39]} gxf3 {[%clk 00:06:20]} {[%emt 00:00:39]} 54.
Kxf3 {[%clk 00:00:54]} {[%emt 00:00:09]} Qxc6 {[%clk 00:06:01]} {[%emt
00:00:50]} 55. Bb3+ {[%clk 00:01:23]} Kf8 {[%clk 00:06:27]} {[%emt 00:00:03]}
56. h5 {[%clk 00:00:35]} {[%emt 00:01:18]} Ke7 {[%clk 00:04:47]} {[%emt
00:02:10]} 57. Kf4 {[%clk 00:00:33]} {[%emt 00:00:32]} Ne6+ {[%clk 00:03:58]}
{[%emt 00:01:19]} 58. Bxe6 {[%clk 00:00:41]} {[%emt 00:00:22]} Kxe6 {[%clk
00:04:26]} {[%emt 00:00:01]} 59. Qa2+ {[%clk 00:00:38]} {[%emt 00:00:33]} Qc4
{[%clk 00:02:53]} {[%emt 00:02:04]} 60. Qxc4+ {[%clk 00:00:39]} {[%emt
00:00:28]} bxc4 {[%clk 00:03:21]} {[%emt 00:00:01]} 61. b5 {[%clk 00:01:09]} d5
{[%clk 00:02:48]} {[%emt 00:01:04]} 62. b6 {[%clk 00:01:04]} {[%emt 00:00:35]}
c3 {[%clk 00:03:11]} {[%emt 00:00:06]} 63. Ke3 {[%clk 00:00:40]} {[%emt
00:00:54]} d4+ {[%clk 00:03:32]} {[%emt 00:00:10]} 64. Kxd4 {[%clk 00:01:05]}
{[%emt 00:00:04]} c2 {[%clk 00:03:59]} {[%emt 00:00:03]} 65. b7 {[%clk
00:01:28]} {[%emt 00:00:08]} c1=Q {[%clk 00:04:25]} {[%emt 00:00:04]} 66. b8=Q
{[%clk 00:01:55]} {[%emt 00:00:03]} Qd1+ {[%clk 00:04:14]} {[%emt 00:00:40]} 67.
Ke3 {[%clk 00:02:21]} {[%emt 00:00:04]} Qxh5 {[%clk 00:04:16]} {[%emt
00:00:28]} 68. Qg8+ {[%clk 00:01:29]} {[%emt 00:01:22]} Qf7 {[%clk 00:04:27]}
{[%emt 00:00:19]} 69. Qc8+ {[%clk 00:01:57]} {[%emt 00:00:01]} Qd7 {[%clk
00:04:39]} {[%emt 00:00:19]} 70. Qg8+ {[%clk 00:01:48]} {[%emt 00:00:39]} Kd6
{[%clk 00:05:01]} {[%emt 00:00:08]} 71. Qf8+ {[%clk 00:01:28]} {[%emt
00:00:49]} Kc6 {[%clk 00:05:01]} {[%emt 00:00:31]} 72. Qa8+ {[%clk 00:01:50]}
{[%emt 00:00:08]} Kc7 {[%clk 00:04:53]} {[%emt 00:00:38]} 73. Qa5+ {[%clk
00:01:08]} {[%emt 00:01:12]} Kd6 {[%clk 00:04:59]} {[%emt 00:00:23]} 74. e5+
{[%clk 00:00:55]} {[%emt 00:00:44]} fxe5 {[%clk 00:04:06]} {[%emt 00:01:23]} 75.
Qb4+ {[%clk 00:01:22]} {[%emt 00:00:03]} Kc6 {[%clk 00:04:25]} {[%emt
00:00:10]} 76. Qa4+ {[%clk 00:01:34]} {[%emt 00:00:17]} Kc7 {[%clk 00:04:48]}
{[%emt 00:00:09]} 77. Qa5+ {[%clk 00:01:52]} {[%emt 00:00:11]} Kd6 {[%clk
00:05:07]} {[%emt 00:00:10]} 78. Qb4+ {[%clk 00:02:19]} {[%emt 00:00:04]}
1/2-1/2

[Event "TePe Sigeman Chess Tournament 2026"]
[Site "Elite Plaza Hotel, Gustav Adolfs Torg 49, Malmo, Sweden"]
[Date "2026.05.02"]
[Round "2.2"]
[White "Abdusattorov, Nodirbek"]
[Black "Woodward, Andy"]
[Result "1/2-1/2"]
[TimeControl "90 minutes for 40 moves + 30 minutes for the rest of the game + 30 seconds per move from move one."]
[WhiteTitle "GM"]
[BlackTitle "GM"]
[WhiteFideId "14204118"]
[BlackFideId "30953499"]
[WhiteElo "2780"]
[BlackElo "2635"]

1. d4 {[%clk 01:30:45]} {[%emt 00:00:14]} Nf6 {[%clk 01:30:37]} {[%emt
00:00:23]} 2. c4 {[%clk 01:31:09]} {[%emt 00:00:07]} e6 {[%clk 01:30:43]}
{[%emt 00:00:24]} 3. Nf3 {[%clk 01:31:20]} {[%emt 00:00:19]} d5 {[%clk
01:30:51]} {[%emt 00:00:22]} 4. Nc3 {[%clk 01:31:42]} {[%emt 00:00:08]} Bb4
{[%clk 01:30:39]} {[%emt 00:00:41]} 5. Qa4+ {[%clk 01:31:56]} {[%emt 00:00:17]}
Nc6 {[%clk 01:30:58]} {[%emt 00:00:11]} 6. e3 {[%clk 01:32:20]} {[%emt
00:00:06]} O-O {[%clk 01:31:00]} {[%emt 00:00:28]} 7. Qc2 {[%clk 01:32:43]}
{[%emt 00:00:07]} Re8 {[%clk 01:29:43]} {[%emt 00:01:47]} 8. Bd2 {[%clk
01:32:41]} {[%emt 00:00:32]} Bf8 {[%clk 01:30:01]} {[%emt 00:00:12]} 9. Be2
{[%clk 01:32:10]} {[%emt 00:01:01]} Nb4 {[%clk 01:30:04]} {[%emt 00:00:27]} 10.
Qb1 {[%clk 01:32:09]} {[%emt 00:00:31]} dxc4 {[%clk 01:30:17]} {[%emt
00:00:17]} 11. Bxc4 {[%clk 01:32:17]} {[%emt 00:00:22]} b6 {[%clk 01:30:35]}
{[%emt 00:00:12]} 12. a3 {[%clk 01:31:14]} {[%emt 00:01:34]} Ba6 {[%clk
01:30:45]} {[%emt 00:00:19]} 13. Be2 {[%clk 01:25:52]} {[%emt 00:05:52]} Bxe2
{[%clk 01:30:52]} {[%emt 00:00:23]} 14. Nxe2 {[%clk 01:26:18]} {[%emt
00:00:05]} Nbd5 {[%clk 01:30:53]} {[%emt 00:00:28]} 15. e4 {[%clk 01:23:01]}
{[%emt 00:03:47]} Ne7 {[%clk 01:31:13]} {[%emt 00:00:10]} 16. e5 {[%clk
01:21:39]} {[%emt 00:01:53]} Nd7 {[%clk 01:29:43]} {[%emt 00:01:59]} 17. Ng5
{[%clk 01:21:23]} {[%emt 00:00:46]} Ng6 {[%clk 01:30:02]} {[%emt 00:00:11]} 18.
h4 {[%clk 01:21:28]} {[%emt 00:00:25]} Be7 {[%clk 01:30:09]} {[%emt 00:00:22]}
19. f4 {[%clk 01:21:21]} {[%emt 00:00:37]} Bxg5 {[%clk 01:09:57]} {[%emt
00:20:43]} 20. hxg5 {[%clk 01:21:11]} {[%emt 00:00:40]} c5 {[%clk 01:09:26]}
{[%emt 00:01:00]} 21. Be3 {[%clk 01:21:11]} {[%emt 00:00:28]} Rc8 {[%clk
01:06:58]} {[%emt 00:02:59]} 22. Kf2 {[%clk 01:14:55]} {[%emt 00:06:46]} cxd4
{[%clk 00:59:57]} {[%emt 00:07:32]} 23. Nxd4 {[%clk 01:14:09]} {[%emt
00:01:16]} Nc5 {[%clk 00:59:42]} {[%emt 00:00:45]} 24. b4 {[%clk 01:01:15]}
{[%emt 00:13:24]} Na4 {[%clk 00:59:22]} {[%emt 00:00:49]} 25. Ne2 {[%clk
00:56:52]} {[%emt 00:04:53]} Rc4 {[%clk 00:45:11]} {[%emt 00:14:42]} 26. Qb3
{[%clk 00:52:18]} {[%emt 00:05:03]} b5 {[%clk 00:45:02]} {[%emt 00:00:40]} 27.
Rac1 {[%clk 00:52:38]} {[%emt 00:00:10]} Nb6 {[%clk 00:41:44]} {[%emt
00:03:49]} 28. Rhd1 {[%clk 00:51:25]} {[%emt 00:01:42]} Qa8 {[%clk 00:40:18]}
{[%emt 00:01:56]} 29. Bxb6 {[%clk 00:39:32]} {[%emt 00:12:24]} axb6 {[%clk
00:39:29]} {[%emt 00:01:19]} 30. Qf3 {[%clk 00:37:57]} {[%emt 00:02:04]} Qa4
{[%clk 00:35:45]} {[%emt 00:04:14]} 31. Rd2 {[%clk 00:22:34]} {[%emt 00:15:53]}
Rxc1 {[%clk 00:25:58]} {[%emt 00:10:18]} 32. Nxc1 {[%clk 00:23:01]} {[%emt
00:00:03]} Ne7 {[%clk 00:26:02]} {[%emt 00:00:26]} 33. Ne2 {[%clk 00:22:39]}
{[%emt 00:00:51]} Nd5 {[%clk 00:18:12]} {[%emt 00:08:20]} 34. f5 {[%clk
00:17:24]} {[%emt 00:05:46]} Qa7 {[%clk 00:12:04]} {[%emt 00:06:38]} 35. f6
{[%clk 00:16:53]} {[%emt 00:01:01]} Qc7 {[%clk 00:09:44]} {[%emt 00:02:50]} 36.
Qe4 {[%clk 00:16:42]} {[%emt 00:00:40]} Rc8 {[%clk 00:08:00]} {[%emt 00:02:15]}
37. Rd1 {[%clk 00:14:41]} {[%emt 00:02:31]} Qb8 {[%clk 00:06:22]} {[%emt
00:02:09]} 38. Rh1 {[%clk 00:12:14]} {[%emt 00:02:56]} h6 {[%clk 00:04:06]}
{[%emt 00:02:46]} 39. fxg7 {[%clk 00:11:04]} {[%emt 00:01:40]} Rc4 {[%clk
00:04:08]} {[%emt 00:00:28]} 40. Nd4 {[%clk 00:07:11]} {[%emt 00:04:23]} Nc3
{[%clk 00:03:04]} {[%emt 00:01:34]} 41. Qf4 {[%clk 00:00:52]} {[%emt 00:06:48]}
Nd5 {[%clk 00:29:25]} {[%emt 00:04:09]} 42. Qe4 {[%clk 00:22:02]} {[%emt
00:09:20]} Nc3 {[%clk 00:29:17]} {[%emt 00:00:39]} 43. Qe3 {[%clk 00:20:01]}
{[%emt 00:02:29]} Nd5 {[%clk 00:27:16]} {[%emt 00:02:33]} 44. Qd3 {[%clk
00:19:32]} {[%emt 00:00:59]} Kxg7 {[%clk 00:20:50]} {[%emt 00:06:56]} 45. gxh6+
{[%clk 00:18:50]} {[%emt 00:01:12]} Kh8 {[%clk 00:21:18]} {[%emt 00:00:02]} 46.
Qg3 {[%clk 00:17:28]} {[%emt 00:01:51]} Qf8 {[%clk 00:21:39]} {[%emt 00:00:10]}
47. Rh4 {[%clk 00:15:13]} {[%emt 00:02:45]} Rc3 {[%clk 00:16:19]} {[%emt
00:05:50]} 48. Qg5 {[%clk 00:15:33]} {[%emt 00:00:10]} Rxa3 {[%clk 00:15:22]}
{[%emt 00:01:28]} 49. Rg4 {[%clk 00:14:27]} {[%emt 00:01:35]} Ra8 {[%clk
00:11:49]} {[%emt 00:04:03]} 50. Kg1 {[%clk 00:12:27]} {[%emt 00:02:30]} Qg8
{[%clk 00:08:34]} {[%emt 00:03:45]} 51. Qh4 {[%clk 00:11:19]} {[%emt 00:01:38]}
Qh7 {[%clk 00:08:43]} {[%emt 00:00:22]} 52. Rg7 {[%clk 00:09:46]} {[%emt
00:02:03]} Qd3 {[%clk 00:07:52]} {[%emt 00:01:21]} 53. Nf3 {[%clk 00:10:03]}
{[%emt 00:00:13]} Rg8 {[%clk 00:06:54]} {[%emt 00:01:28]} 54. Qg4 {[%clk
00:07:20]} {[%emt 00:03:12]} Qe3+ {[%clk 00:04:54]} {[%emt 00:02:31]} 55. Kf1
{[%clk 00:07:44]} {[%emt 00:00:06]} Qd3+ {[%clk 00:04:39]} {[%emt 00:00:45]} 56.
Kf2 {[%clk 00:08:08]} {[%emt 00:00:06]} Rc8 {[%clk 00:04:35]} {[%emt 00:00:34]}
57. Qg5 {[%clk 00:07:21]} {[%emt 00:01:17]} Ne3 {[%clk 00:02:57]} {[%emt
00:02:08]} 58. Kg1 {[%clk 00:06:54]} {[%emt 00:00:56]} Nd5 {[%clk 00:00:31]}
{[%emt 00:02:57]} 59. Kh2 {[%clk 00:06:28]} {[%emt 00:00:56]} Qe4 {[%clk
00:00:31]} {[%emt 00:00:30]} 60. Rxf7 {[%clk 00:06:13]} {[%emt 00:00:44]} Rg8
{[%clk 00:01:00]} {[%emt 00:00:01]} 61. Rg7 {[%clk 00:03:50]} {[%emt 00:02:53]}
Qf4+ {[%clk 00:00:57]} {[%emt 00:00:34]} 62. Qxf4 {[%clk 00:04:15]} {[%emt
00:00:04]} Nxf4 {[%clk 00:01:23]} {[%emt 00:00:04]} 63. Rxg8+ {[%clk 00:03:04]}
{[%emt 00:01:41]} Kxg8 {[%clk 00:01:52]} {[%emt 00:00:02]} 64. g4 {[%clk
00:02:14]} {[%emt 00:01:20]} Nd3 {[%clk 00:01:42]} {[%emt 00:00:40]} 65. Kg3
{[%clk 00:00:51]} {[%emt 00:01:53]} Kh7 {[%clk 00:01:41]} {[%emt 00:00:32]} 66.
g5 {[%clk 00:01:09]} {[%emt 00:00:12]} Nxb4 {[%clk 00:02:09]} {[%emt 00:00:02]}
67. Kf4 {[%clk 00:01:22]} {[%emt 00:00:16]} Nd3+ {[%clk 00:01:07]} {[%emt
00:01:33]} 68. Ke3 {[%clk 00:01:44]} {[%emt 00:00:08]} Nc5 {[%clk 00:01:32]}
{[%emt 00:00:04]} 69. Kd4 {[%clk 00:00:48]} {[%emt 00:01:26]} b4 {[%clk
00:01:58]} {[%emt 00:00:05]} 70. Kc4 {[%clk 00:00:43]} {[%emt 00:00:36]} b3
{[%clk 00:02:27]} {[%emt 00:00:01]} 71. Kc3 {[%clk 00:01:07]} {[%emt 00:00:06]}
b5 {[%clk 00:02:30]} {[%emt 00:00:26]} 72. Nd2 {[%clk 00:00:50]} {[%emt
00:00:47]} Nd7 {[%clk 00:02:53]} {[%emt 00:00:07]} 73. Nf3 {[%emt 00:00:08]}
Nc5 {[%clk 00:03:22]} 74. Ne1 {[%clk 00:00:33]} {[%emt 00:01:09]} Ne4+ {[%clk
00:03:40]} {[%emt 00:00:13]} 75. Kxb3 {[%clk 00:00:59]} {[%emt 00:00:04]} Nxg5
{[%clk 00:04:06]} {[%emt 00:00:04]} 76. Kb4 {[%clk 00:01:27]} {[%emt 00:00:03]}
Nf7 {[%clk 00:04:31]} {[%emt 00:00:05]} 77. Nd3 {[%clk 00:01:54]} {[%emt
00:00:03]} Nxe5 {[%clk 00:04:57]} {[%emt 00:00:04]} 78. Nxe5 {[%clk 00:02:22]}
{[%emt 00:00:01]} Kxh6 {[%clk 00:05:22]} {[%emt 00:00:06]} 79. Kxb5 {[%clk
00:02:50]} {[%emt 00:00:01]} 1/2-1/2

[Event "TePe Sigeman Chess Tournament 2026"]
[Site "Elite Plaza Hotel, Gustav Adolfs Torg 49, Malmo, Sweden"]
[Date "2026.05.02"]
[Round "2.3"]
[White "Grandelius, Nils"]
[Black "Carlsen, Magnus"]
[Result "0-1"]
[TimeControl "90 minutes for 40 moves + 30 minutes for the rest of the game + 30 seconds per move from move one."]
[WhiteTitle "GM"]
[BlackTitle "GM"]
[WhiteFideId "1710400"]
[BlackFideId "1503014"]
[WhiteElo "2662"]
[BlackElo "2840"]

1. d4 {[%clk 01:30:50]} {[%emt 00:00:10]} Nf6 {[%clk 01:30:11]} {[%emt
00:00:49]} 2. c4 {[%clk 01:31:08]} {[%emt 00:00:12]} e6 {[%clk 01:30:09]}
{[%emt 00:00:31]} 3. Nc3 {[%clk 01:31:13]} {[%emt 00:00:26]} c5 {[%clk
01:30:07]} {[%emt 00:00:32]} 4. d5 {[%clk 01:29:29]} {[%emt 00:02:15]} exd5
{[%clk 01:30:29]} {[%emt 00:00:07]} 5. cxd5 {[%clk 01:29:53]} {[%emt 00:00:06]}
d6 {[%clk 01:30:50]} {[%emt 00:00:09]} 6. e4 {[%clk 01:28:18]} {[%emt
00:02:05]} g6 {[%clk 01:30:10]} {[%emt 00:01:10]} 7. Be2 {[%clk 01:27:38]}
{[%emt 00:01:10]} Bg7 {[%clk 01:28:35]} {[%emt 00:02:05]} 8. Be3 {[%clk
01:27:55]} {[%emt 00:00:13]} O-O {[%clk 01:25:47]} {[%emt 00:03:18]} 9. Nf3
{[%clk 01:27:55]} {[%emt 00:00:30]} Bg4 {[%clk 01:20:59]} {[%emt 00:05:19]} 10.
Nd2 {[%clk 01:26:30]} {[%emt 00:01:55]} Bxe2 {[%clk 01:21:02]} {[%emt
00:00:27]} 11. Qxe2 {[%clk 01:26:55]} {[%emt 00:00:05]} Nbd7 {[%clk 01:20:58]}
{[%emt 00:00:35]} 12. O-O {[%clk 01:26:42]} {[%emt 00:00:42]} Ne8 {[%clk
01:17:53]} {[%emt 00:03:33]} 13. f4 {[%clk 01:15:35]} {[%emt 00:11:40]} f5
{[%clk 01:15:36]} {[%emt 00:02:47]} 14. exf5 {[%clk 01:02:42]} {[%emt
00:13:23]} gxf5 {[%clk 01:15:16]} {[%emt 00:00:51]} 15. Bf2 {[%clk 01:02:16]}
{[%emt 00:00:56]} Nc7 {[%clk 01:11:46]} {[%emt 00:03:58]} 16. Nf3 {[%clk
00:52:46]} {[%emt 00:10:01]} Nf6 {[%clk 01:04:40]} {[%emt 00:07:36]} 17. Qd3
{[%emt 00:16:12]} b5 {[%clk 00:52:54]} 18. Nxb5 {[%clk 00:28:57]} {[%emt
00:20:53]} Nxb5 {[%clk 00:53:13]} {[%emt 00:00:11]} 19. Qxb5 {[%clk 00:29:24]}
{[%emt 00:00:03]} Rb8 {[%clk 00:53:26]} {[%emt 00:00:16]} 20. Qd3 {[%clk
00:26:49]} {[%emt 00:03:05]} Ne4 {[%clk 00:52:40]} {[%emt 00:01:16]} 21. Rab1
{[%clk 00:22:20]} {[%emt 00:04:59]} Qa5 {[%clk 00:40:54]} {[%emt 00:12:16]} 22.
Ng5 {[%clk 00:16:59]} {[%emt 00:05:52]} Qd2 {[%clk 00:40:33]} {[%emt 00:00:51]}
23. Qh3 {[%clk 00:14:33]} {[%emt 00:02:56]} Nxg5 {[%clk 00:40:56]} {[%emt
00:00:07]} 24. fxg5 {[%clk 00:14:59]} {[%emt 00:00:04]} Rxb2 {[%clk 00:37:59]}
{[%emt 00:03:27]} 25. Rxb2 {[%clk 00:12:11]} {[%emt 00:03:18]} Qxb2 {[%clk
00:38:27]} {[%emt 00:00:02]} 26. Qh5 {[%clk 00:05:57]} {[%emt 00:06:44]} Qxa2
{[%clk 00:34:01]} {[%emt 00:04:56]} 27. g6 {[%clk 00:05:39]} {[%emt 00:00:48]}
h6 {[%clk 00:32:41]} {[%emt 00:01:50]} 28. Qf3 {[%clk 00:02:03]} {[%emt
00:04:06]} a5 {[%clk 00:27:44]} {[%emt 00:05:27]} 29. h4 {[%clk 00:01:36]}
{[%emt 00:00:56]} a4 {[%clk 00:27:07]} {[%emt 00:01:07]} 30. Qf4 {[%clk
00:01:20]} {[%emt 00:00:46]} a3 {[%clk 00:12:01]} {[%emt 00:15:37]} 31. Qxd6
{[%clk 00:01:38]} {[%emt 00:00:12]} Qb2 {[%clk 00:12:06]} {[%emt 00:00:24]} 32.
Bxc5 {[%clk 00:01:19]} {[%emt 00:00:49]} a2 {[%clk 00:11:22]} {[%emt 00:01:15]}
33. Qe6+ {[%clk 00:00:32]} {[%emt 00:01:17]} Kh8 {[%clk 00:11:45]} {[%emt
00:00:06]} 34. Kh2 {[%clk 00:00:31]} {[%emt 00:00:31]} Qe5+ {[%clk 00:11:38]}
{[%emt 00:00:37]} 35. Qxe5 {[%clk 00:00:34]} {[%emt 00:00:28]} Bxe5+ {[%clk
00:12:00]} {[%emt 00:00:08]} 36. Kh3 {[%clk 00:01:00]} {[%emt 00:00:03]} Rd8
{[%clk 00:11:55]} {[%emt 00:00:35]} 0-1